[Event "Titled Tuesday Blitz June 13 Early 2023"]
[White "Ajay Karthikeyan"]
[Black "Zaitsev, Alexander"]
[WhiteFideId "35011685"]
[BlackFideId "4164490"]
[WhiteElo "2321"]
[BlackElo "2373"]
[Result "1-0"]
[Round "4"]
[TimeControl "180+2"]
[Date "2023.06.13"]
[WhiteClock "0:01:27"]
[BlackClock "0:00:00"]
[Board "110"]

1. e4 {[%clk 0:03:00]}  c5 {[%clk 0:02:59]} 2. Nf3 {[%clk 0:03:00]}  g6 {[%clk 0:03:00]} 3. d4 {[%clk 0:02:59]}  cxd4 {[%clk 0:03:01]} 4. Nxd4 {[%clk 0:02:57]}  Bg7 {[%clk 0:03:01]} 5. c4 {[%clk 0:02:57]}  Nc6 {[%clk 0:03:02]} 6. Be3 {[%clk 0:02:57]}  Qb6 {[%clk 0:03:02]} 7. Nb5 {[%clk 0:02:49]}  Qd8 {[%clk 0:03:01]} 8. Nd4 {[%clk 0:02:48]}  Nf6 {[%clk 0:02:53]} 9. Nc3 {[%clk 0:02:48]}  d6 {[%clk 0:02:49]} 10. Be2 {[%clk 0:02:44]}  O-O {[%clk 0:02:49]} 11. O-O {[%clk 0:02:41]}  Bd7 {[%clk 0:02:49]} 12. f3 {[%clk 0:02:38]}  Nxd4 {[%clk 0:02:47]} 13. Bxd4 {[%clk 0:02:38]}  a5 {[%clk 0:02:46]} 14. b3 {[%clk 0:02:38]}  Bc6 {[%clk 0:02:41]} 15. Rc1 {[%clk 0:02:38]}  Nd7 {[%clk 0:02:40]} 16. Bxg7 {[%clk 0:02:38]}  Kxg7 {[%clk 0:02:41]} 17. Qd4+ {[%clk 0:02:38]}  Kg8 {[%clk 0:02:40]} 18. Nd5 {[%clk 0:02:38]}  e6 {[%clk 0:02:09]} 19. Ne3 {[%clk 0:02:33]}  Qb6 {[%clk 0:02:09]} 20. Qxb6 {[%clk 0:02:30]}  Nxb6 {[%clk 0:02:09]} 21. Rfd1 {[%clk 0:02:31]}  Rfd8 {[%clk 0:02:09]} 22. Kf2 {[%clk 0:02:30]}  Kf8 {[%clk 0:02:08]} 23. h4 {[%clk 0:02:30]}  h5 {[%clk 0:02:02]} 24. a3 {[%clk 0:02:18]}  Ke7 {[%clk 0:02:00]} 25. Rd2 {[%clk 0:02:13]}  Nd7 {[%clk 0:01:47]} 26. Bd1 {[%clk 0:02:09]}  Ne5 {[%clk 0:01:37]} 27. Be2 {[%clk 0:02:09]}  f6 {[%clk 0:01:34]} 28. Rcd1 {[%clk 0:02:02]}  b6 {[%clk 0:01:35]} 29. Nc2 {[%clk 0:01:57]}  Rab8 {[%clk 0:01:30]} 30. Nd4 {[%clk 0:01:56]}  Be8 {[%clk 0:01:30]} 31. Ke3 {[%clk 0:01:56]}  g5 {[%clk 0:01:22]} 32. g3 {[%clk 0:01:52]}  Rbc8 {[%clk 0:01:17]} 33. f4 {[%clk 0:01:48]}  gxf4+ {[%clk 0:01:15]} 34. gxf4 {[%clk 0:01:49]}  Nc6 {[%clk 0:01:06]} 35. Nb5 {[%clk 0:01:47]}  Rd7 {[%clk 0:00:28]} 36. Nxd6 {[%clk 0:01:45]}  Rcd8 {[%clk 0:00:28]} 37. Nxe8 {[%clk 0:01:43]}  Rxd2 {[%clk 0:00:26]} 38. Rxd2 {[%clk 0:01:44]}  Rxe8 {[%clk 0:00:20]} 39. Rd1 {[%clk 0:01:35]}  e5 {[%clk 0:00:19]} 40. fxe5 {[%clk 0:01:30]}  fxe5 {[%clk 0:00:20]} 41. Rg1 {[%clk 0:01:30]}  Nd4 {[%clk 0:00:20]} 42. Bd1 {[%clk 0:01:30]}  a4 {[%clk 0:00:17]} 43. b4 {[%clk 0:01:28]}  Rc8 {[%clk 0:00:17]} 44. Kd3 {[%clk 0:01:29]}  Rd8 {[%clk 0:00:17]} 45. Kc3 {[%clk 0:01:29]}  Ne6 {[%clk 0:00:13]} 46. Bxa4 {[%clk 0:01:29]}  Nf4 {[%clk 0:00:14]} 47. Bd1 {[%clk 0:01:29]}  Rd3+ {[%clk 0:00:14]} 48. Kb2 {[%clk 0:01:29]}  Rd2+ {[%clk 0:00:14]} 49. Kb3 {[%clk 0:01:29]}  Rd3+ {[%clk 0:00:14]} 50. Ka4 {[%clk 0:01:30]}  Rc3 {[%clk 0:00:11]} 51. Kb5 {[%clk 0:01:29]}  Rc1 {[%clk 0:00:11]} 52. Kxb6 {[%clk 0:01:28]}  Ne6 {[%clk 0:00:10]} 53. c5 {[%clk 0:01:27]}  Nd4 {[%clk 0:00:00]} 54. a4 {[%clk 0:01:27]} 1-0


[Site "https://www.chess.com"]

[Event "Titled Tuesday Blitz June 13 Early 2023"]
[White "Kumsiashvili, Nikoloz"]
[Black "Baches Garcia, Guillermo"]
[WhiteFideId "13600621"]
[BlackFideId "2209764"]
[WhiteElo "2299"]
[BlackElo "2468"]
[Result "1/2-1/2"]
[Round "4"]
[TimeControl "180+2"]
[Date "2023.06.13"]
[WhiteClock "0:00:12"]
[BlackClock "0:00:23"]
[Board "113"]

1. c4 {[%clk 0:03:00]}  e6 {[%clk 0:02:59]} 2. Nc3 {[%clk 0:02:57]}  d5 {[%clk 0:02:59]} 3. d4 {[%clk 0:02:57]}  h6 {[%clk 0:02:59]} 4. Nf3 {[%clk 0:02:55]}  Nf6 {[%clk 0:02:58]} 5. cxd5 {[%clk 0:02:55]}  exd5 {[%clk 0:02:58]} 6. Bf4 {[%clk 0:02:55]}  Bd6 {[%clk 0:02:57]} 7. Bg3 {[%clk 0:02:53]}  Bxg3 {[%clk 0:02:56]} 8. hxg3 {[%clk 0:02:53]}  O-O {[%clk 0:02:53]} 9. Qc2 {[%clk 0:02:45]}  c6 {[%clk 0:02:52]} 10. e3 {[%clk 0:02:44]}  Qe7 {[%clk 0:02:49]} 11. Bd3 {[%clk 0:02:44]}  Ne8 {[%clk 0:02:49]} 12. O-O-O {[%clk 0:02:39]}  Nd6 {[%clk 0:02:49]} 13. Ne5 {[%clk 0:02:38]}  Nd7 {[%clk 0:02:45]} 14. f4 {[%clk 0:02:30]}  Nxe5 {[%clk 0:02:36]} 15. dxe5 {[%clk 0:01:59]}  Nc4 {[%clk 0:02:35]} 16. Bxc4 {[%clk 0:01:53]}  dxc4 {[%clk 0:02:35]} 17. Ne4 {[%clk 0:01:50]}  Be6 {[%clk 0:02:27]} 18. Nd6 {[%clk 0:01:49]}  b5 {[%clk 0:02:16]} 19. Rh4 {[%clk 0:01:10]}  f6 {[%clk 0:02:07]} 20. Qg6 {[%clk 0:00:52]}  fxe5 {[%clk 0:01:44]} 21. Rxh6 {[%clk 0:00:48]}  Rf6 {[%clk 0:01:05]} 22. Qh7+ {[%clk 0:00:40]}  Kf8 {[%clk 0:01:05]} 23. Rxf6+ {[%clk 0:00:28]}  Qxf6 {[%clk 0:01:02]} 24. Ne4 {[%clk 0:00:27]}  Qf5 {[%clk 0:00:48]} 25. Qh8+ {[%clk 0:00:26]}  Bg8 {[%clk 0:00:48]} 26. Ng5 {[%clk 0:00:20]}  exf4 {[%clk 0:00:37]} 27. gxf4 {[%clk 0:00:19]}  Re8 {[%clk 0:00:33]} 28. g4 {[%clk 0:00:14]}  Qc5 {[%clk 0:00:23]} 29. Nh7+ {[%clk 0:00:13]}  Kf7 {[%clk 0:00:23]} 30. Ng5+ {[%clk 0:00:14]}  Kf8 {[%clk 0:00:23]} 31. Nh7+ {[%clk 0:00:13]}  Kf7 {[%clk 0:00:24]} 32. Rd7+ {[%clk 0:00:13]}  Re7 {[%clk 0:00:23]} 33. Rxe7+ {[%clk 0:00:13]}  Qxe7 {[%clk 0:00:24]} 34. Ng5+ {[%clk 0:00:13]}  Kf8 {[%clk 0:00:24]} 35. Qh5 {[%clk 0:00:12]}  Qxe3+ {[%clk 0:00:23]} 36. Kc2 {[%clk 0:00:12]}  Qd3+ {[%clk 0:00:22]} 37. Kc1 {[%clk 0:00:12]}  Qe3+ {[%clk 0:00:22]} 38. Kc2 {[%clk 0:00:12]}  Qd3+ {[%clk 0:00:22]} 39. Kc1 {[%clk 0:00:12]}  Qe3+ {[%clk 0:00:23]} 1/2-1/2


[Site "https://www.chess.com"]

[Event "Titled Tuesday Blitz June 13 Early 2023"]
[White "Wadsworth, Matthew J"]
[Black "LangesNasenhaar"]
[WhiteFideId "415804"]
[WhiteElo "2347"]
[BlackElo "2464"]
[Result "1-0"]
[Round "4"]
[TimeControl "180+2"]
[Date "2023.06.13"]
[WhiteClock "0:00:16"]
[BlackClock "0:00:00"]
[Board "114"]

1. Nf3 {[%clk 0:03:00]}  g6 {[%clk 0:02:57]} 2. g3 {[%clk 0:03:00]}  Bg7 {[%clk 0:02:58]} 3. Bg2 {[%clk 0:03:01]}  d6 {[%clk 0:02:55]} 4. O-O {[%clk 0:03:02]}  Bd7 {[%clk 0:02:54]} 5. c4 {[%clk 0:03:03]}  Qc8 {[%clk 0:02:55]} 6. Re1 {[%clk 0:02:55]}  e5 {[%clk 0:02:53]} 7. d3 {[%clk 0:02:55]}  Bh3 {[%clk 0:02:50]} 8. Bh1 {[%clk 0:02:54]}  Nc6 {[%clk 0:02:51]} 9. Nc3 {[%clk 0:02:54]}  h5 {[%clk 0:02:51]} 10. Nd5 {[%clk 0:02:34]}  h4 {[%clk 0:02:42]} 11. e4 {[%clk 0:02:04]}  hxg3 {[%clk 0:02:37]} 12. fxg3 {[%clk 0:01:59]}  Bg4 {[%clk 0:02:25]} 13. Be3 {[%clk 0:01:55]}  Nf6 {[%clk 0:02:17]} 14. Rf1 {[%clk 0:01:44]}  Nd4 {[%clk 0:01:56]} 15. Bxd4 {[%clk 0:01:38]}  exd4 {[%clk 0:01:56]} 16. Qd2 {[%clk 0:01:24]}  c6 {[%clk 0:01:44]} 17. Nxf6+ {[%clk 0:01:16]}  Bxf6 {[%clk 0:01:44]} 18. Ng5 {[%clk 0:01:13]}  Bxg5 {[%clk 0:01:02]} 19. Qxg5 {[%clk 0:01:11]}  Bh3 {[%clk 0:01:00]} 20. Qf6 {[%clk 0:00:59]}  Rh7 {[%clk 0:00:49]} 21. Qxd6 {[%clk 0:00:55]}  Bxf1 {[%clk 0:00:43]} 22. Rxf1 {[%clk 0:00:54]}  Qe6 {[%clk 0:00:43]} 23. Qxe6+ {[%clk 0:00:46]}  fxe6 {[%clk 0:00:42]} 24. Rf6 {[%clk 0:00:47]}  e5 {[%clk 0:00:31]} 25. Rxg6 {[%clk 0:00:45]}  Kf7 {[%clk 0:00:30]} 26. Rg5 {[%clk 0:00:43]}  Kf6 {[%clk 0:00:27]} 27. Rf5+ {[%clk 0:00:42]}  Ke6 {[%clk 0:00:28]} 28. Bf3 {[%clk 0:00:41]}  Rf7 {[%clk 0:00:28]} 29. g4 {[%clk 0:00:39]}  Rh8 {[%clk 0:00:21]} 30. Bg2 {[%clk 0:00:21]}  Rxf5 {[%clk 0:00:20]} 31. exf5+ {[%clk 0:00:21]}  Kf6 {[%clk 0:00:20]} 32. h3 {[%clk 0:00:19]}  Kg5 {[%clk 0:00:20]} 33. Kf2 {[%clk 0:00:19]}  Kf4 {[%clk 0:00:20]} 34. b4 {[%clk 0:00:18]}  Rg8 {[%clk 0:00:17]} 35. a4 {[%clk 0:00:16]}  Rg7 {[%clk 0:00:17]} 36. b5 {[%clk 0:00:16]}  cxb5 {[%clk 0:00:15]} 37. cxb5 {[%clk 0:00:16]}  b6 {[%clk 0:00:15]} 38. Bd5 {[%clk 0:00:16]}  Rc7 {[%clk 0:00:14]} 39. f6 {[%clk 0:00:14]}  Rc2+ {[%clk 0:00:06]} 40. Kf1 {[%clk 0:00:14]}  Kg5 {[%clk 0:00:01]} 41. f7 {[%clk 0:00:14]}  Rc8 {[%clk 0:00:02]} 42. Kg2 {[%clk 0:00:14]}  Rf8 {[%clk 0:00:01]} 43. Kg3 {[%clk 0:00:14]}  Rc8 {[%clk 0:00:01]} 44. h4+ {[%clk 0:00:14]}  Kf6 {[%clk 0:00:01]} 45. g5+ {[%clk 0:00:15]}  Kg7 {[%clk 0:00:01]} 46. Kg4 {[%clk 0:00:15]}  Rc3 {[%clk 0:00:02]} 47. h5 {[%clk 0:00:15]}  Rxd3 {[%clk 0:00:02]} 48. h6+ {[%clk 0:00:15]}  Kf8 {[%clk 0:00:02]} 49. h7 {[%clk 0:00:16]}  Rg3+ {[%clk 0:00:00]} 50. Kxg3 {[%clk 0:00:16]} 1-0


[Site "https://www.chess.com"]

[Event "Titled Tuesday Blitz June 13 Early 2023"]
[White "Bueno, Alfeu Junior Varela"]
[Black "Ibadov, Dashgyn"]
[WhiteFideId "2108879"]
[BlackFideId "24107514"]
[WhiteElo "2175"]
[BlackElo "2208"]
[Result "1/2-1/2"]
[Round "4"]
[TimeControl "180+2"]
[Date "2023.06.13"]
[WhiteClock "0:00:06"]
[BlackClock "0:00:05"]
[Board "116"]

1. e4 {[%clk 0:02:56]}  e6 {[%clk 0:02:59]} 2. d4 {[%clk 0:02:55]}  d5 {[%clk 0:03:00]} 3. Nd2 {[%clk 0:02:55]}  c5 {[%clk 0:03:00]} 4. exd5 {[%clk 0:02:56]}  Qxd5 {[%clk 0:03:01]} 5. Ngf3 {[%clk 0:02:55]}  cxd4 {[%clk 0:03:01]} 6. Bc4 {[%clk 0:02:55]}  Qd6 {[%clk 0:03:02]} 7. O-O {[%clk 0:02:55]}  Nf6 {[%clk 0:03:03]} 8. Nb3 {[%clk 0:02:55]}  Nc6 {[%clk 0:03:03]} 9. Nbxd4 {[%clk 0:02:54]}  Nxd4 {[%clk 0:03:04]} 10. Qxd4 {[%clk 0:02:53]}  Qxd4 {[%clk 0:03:04]} 11. Nxd4 {[%clk 0:02:54]}  Bd7 {[%clk 0:03:05]} 12. Bg5 {[%clk 0:02:40]}  Rc8 {[%clk 0:02:58]} 13. Bb3 {[%clk 0:02:27]}  Bc5 {[%clk 0:02:56]} 14. Rad1 {[%clk 0:02:25]}  h6 {[%clk 0:02:52]} 15. Bh4 {[%clk 0:02:16]}  g5 {[%clk 0:02:26]} 16. Bg3 {[%clk 0:02:15]}  Ne4 {[%clk 0:02:26]} 17. Rfe1 {[%clk 0:01:41]}  Nxg3 {[%clk 0:02:26]} 18. hxg3 {[%clk 0:01:42]}  Be7 {[%clk 0:01:46]} 19. Re2 {[%clk 0:01:25]}  Rc7 {[%clk 0:01:40]} 20. Red2 {[%clk 0:01:20]}  Bf6 {[%clk 0:01:31]} 21. c3 {[%clk 0:01:13]}  Ke7 {[%clk 0:01:18]} 22. Re1 {[%clk 0:01:08]}  Kf8 {[%clk 0:01:13]} 23. Red1 {[%clk 0:01:03]}  Ke7 {[%clk 0:01:04]} 24. Re1 {[%clk 0:01:02]}  Bxd4 {[%clk 0:01:01]} 25. Rxd4 {[%clk 0:01:01]}  Bc6 {[%clk 0:00:45]} 26. Red1 {[%clk 0:00:58]}  Rd7 {[%clk 0:00:45]} 27. g4 {[%clk 0:00:44]}  Rxd4 {[%clk 0:00:38]} 28. Rxd4 {[%clk 0:00:44]}  h5 {[%clk 0:00:31]} 29. gxh5 {[%clk 0:00:41]}  Rxh5 {[%clk 0:00:32]} 30. f3 {[%clk 0:00:35]}  f5 {[%clk 0:00:31]} 31. Rd2 {[%clk 0:00:31]}  Rh6 {[%clk 0:00:20]} 32. Re2 {[%clk 0:00:30]}  Kd6 {[%clk 0:00:18]} 33. Kf2 {[%clk 0:00:29]}  f4 {[%clk 0:00:17]} 34. Rd2+ {[%clk 0:00:26]}  Ke7 {[%clk 0:00:16]} 35. Re2 {[%clk 0:00:26]}  Rg6 {[%clk 0:00:16]} 36. Bc2 {[%clk 0:00:16]}  Rg7 {[%clk 0:00:14]} 37. Be4 {[%clk 0:00:16]}  Bxe4 {[%clk 0:00:10]} 38. Rxe4 {[%clk 0:00:17]}  Kd6 {[%clk 0:00:11]} 39. Ra4 {[%clk 0:00:15]}  a6 {[%clk 0:00:11]} 40. Ra5 {[%clk 0:00:15]}  e5 {[%clk 0:00:11]} 41. Ke2 {[%clk 0:00:16]}  g4 {[%clk 0:00:11]} 42. Kd3 {[%clk 0:00:15]}  gxf3 {[%clk 0:00:11]} 43. gxf3 {[%clk 0:00:16]}  Rg2 {[%clk 0:00:11]} 44. Ke4 {[%clk 0:00:15]}  Re2+ {[%clk 0:00:09]} 45. Kf5 {[%clk 0:00:14]}  e4 {[%clk 0:00:08]} 46. Kxf4 {[%clk 0:00:13]}  exf3 {[%clk 0:00:04]} 47. Kxf3 {[%clk 0:00:09]}  Rxb2 {[%clk 0:00:04]} 48. Ra3 {[%clk 0:00:08]}  Kc5 {[%clk 0:00:03]} 49. Rb3 {[%clk 0:00:06]}  Rxb3 {[%clk 0:00:02]} 50. axb3 {[%clk 0:00:07]}  b5 {[%clk 0:00:02]} 51. Ke3 {[%clk 0:00:07]}  a5 {[%clk 0:00:02]} 52. Kd3 {[%clk 0:00:08]}  a4 {[%clk 0:00:03]} 53. bxa4 {[%clk 0:00:05]}  bxa4 {[%clk 0:00:03]} 54. Kc2 {[%clk 0:00:05]}  Kc4 {[%clk 0:00:04]} 55. Kb2 {[%clk 0:00:06]}  a3+ {[%clk 0:00:04]} 56. Kxa3 {[%clk 0:00:06]}  Kxc3 {[%clk 0:00:05]} 1/2-1/2


[Site "https://www.chess.com"]

[Event "Titled Tuesday Blitz June 13 Early 2023"]
[White "Jimenez Garcia, Emmanuel"]
[Black "Pastar, Slaven"]
[WhiteFideId "6504779"]
[BlackFideId "14402718"]
[WhiteElo "2440"]
[BlackElo "2219"]
[Result "0-1"]
[Round "4"]
[TimeControl "180+2"]
[Date "2023.06.13"]
[WhiteClock "0:00:42"]
[BlackClock "0:00:55"]
[Board "117"]

1. Nf3 {[%clk 0:03:00]}  Nf6 {[%clk 0:02:59]} 2. c4 {[%clk 0:02:59]}  c5 {[%clk 0:02:58]} 3. b3 {[%clk 0:02:59]}  b6 {[%clk 0:02:57]} 4. Bb2 {[%clk 0:02:59]}  Bb7 {[%clk 0:02:57]} 5. g3 {[%clk 0:02:59]}  g6 {[%clk 0:02:57]} 6. Bxf6 {[%clk 0:02:59]}  Bxf3 {[%clk 0:02:45]} 7. Bxh8 {[%clk 0:02:54]}  Bxh1 {[%clk 0:02:45]} 8. Bb2 {[%clk 0:02:36]}  Bb7 {[%clk 0:02:43]} 9. d4 {[%clk 0:02:36]}  cxd4 {[%clk 0:02:40]} 10. Bxd4 {[%clk 0:02:35]}  Nc6 {[%clk 0:02:36]} 11. Bc3 {[%clk 0:02:34]}  e6 {[%clk 0:02:21]} 12. Bg2 {[%clk 0:02:33]}  Qc7 {[%clk 0:02:21]} 13. Kf1 {[%clk 0:02:22]}  h5 {[%clk 0:02:10]} 14. Kg1 {[%clk 0:02:21]}  h4 {[%clk 0:02:09]} 15. e3 {[%clk 0:02:19]}  O-O-O {[%clk 0:02:06]} 16. Qg4 {[%clk 0:02:14]}  hxg3 {[%clk 0:02:04]} 17. hxg3 {[%clk 0:02:13]}  f5 {[%clk 0:01:47]} 18. Qxg6 {[%clk 0:02:09]}  Ne5 {[%clk 0:01:47]} 19. Qh5 {[%clk 0:01:57]}  Bg7 {[%clk 0:01:37]} 20. f4 {[%clk 0:01:44]}  Bxg2 {[%clk 0:00:59]} 21. Kxg2 {[%clk 0:01:41]}  Qc6+ {[%clk 0:00:57]} 22. Kf1 {[%clk 0:01:20]}  Rh8 {[%clk 0:00:57]} 23. Qxh8+ {[%clk 0:01:04]}  Bxh8 {[%clk 0:00:58]} 24. fxe5 {[%clk 0:01:01]}  Qf3+ {[%clk 0:00:57]} 25. Ke1 {[%clk 0:01:01]}  Qxe3+ {[%clk 0:00:58]} 26. Kd1 {[%clk 0:01:01]}  Bxe5 {[%clk 0:00:57]} 27. Kc2 {[%clk 0:00:55]}  Qe2+ {[%clk 0:00:54]} 28. Nd2 {[%clk 0:00:54]}  Bxc3 {[%clk 0:00:53]} 29. Kxc3 {[%clk 0:00:54]}  Qe5+ {[%clk 0:00:54]} 30. Kc2 {[%clk 0:00:42]}  Qxa1 {[%clk 0:00:55]} 0-1


[Site "https://www.chess.com"]

[Event "Titled Tuesday Blitz June 13 Early 2023"]
[White "Grossboss19"]
[Black "Spata, German"]
[BlackFideId "113026"]
[WhiteElo "2427"]
[BlackElo "2260"]
[Result "0-1"]
[Round "4"]
[TimeControl "180+2"]
[Date "2023.06.13"]
[WhiteClock "0:00:00"]
[BlackClock "0:00:01"]
[Board "120"]

1. d4 {[%clk 0:02:59]}  g6 {[%clk 0:02:58]} 2. e4 {[%clk 0:02:59]}  Bg7 {[%clk 0:02:58]} 3. Nf3 {[%clk 0:03:00]}  d6 {[%clk 0:02:57]} 4. c3 {[%clk 0:02:58]}  a6 {[%clk 0:02:54]} 5. Bd3 {[%clk 0:02:57]}  Nf6 {[%clk 0:02:48]} 6. O-O {[%clk 0:02:56]}  O-O {[%clk 0:02:48]} 7. h3 {[%clk 0:02:50]}  c5 {[%clk 0:02:37]} 8. dxc5 {[%clk 0:02:37]}  d5 {[%clk 0:02:37]} 9. exd5 {[%clk 0:02:26]}  Qxd5 {[%clk 0:02:37]} 10. b4 {[%clk 0:02:23]}  Nc6 {[%clk 0:02:31]} 11. Bc2 {[%clk 0:02:15]}  Rd8 {[%clk 0:02:25]} 12. Bb3 {[%clk 0:02:04]}  Qxd1 {[%clk 0:02:24]} 13. Rxd1 {[%clk 0:02:03]}  Rxd1+ {[%clk 0:02:24]} 14. Bxd1 {[%clk 0:02:04]}  Ne4 {[%clk 0:02:25]} 15. Bb2 {[%clk 0:01:50]}  Nxb4 {[%clk 0:02:20]} 16. Nbd2 {[%clk 0:01:46]}  Nxd2 {[%clk 0:02:09]} 17. Nxd2 {[%clk 0:01:46]}  Nd3 {[%clk 0:01:59]} 18. Rb1 {[%clk 0:01:42]}  Nxb2 {[%clk 0:01:53]} 19. Rxb2 {[%clk 0:01:38]}  Bxc3 {[%clk 0:01:49]} 20. Rc2 {[%clk 0:01:35]}  Bxd2 {[%clk 0:01:45]} 21. Rxd2 {[%clk 0:01:33]}  Be6 {[%clk 0:01:46]} 22. Bf3 {[%clk 0:01:31]}  Rc8 {[%clk 0:01:40]} 23. Rc2 {[%clk 0:01:13]}  Rc7 {[%clk 0:01:33]} 24. Be4 {[%clk 0:01:10]}  Bf5 {[%clk 0:01:24]} 25. Bxf5 {[%clk 0:01:04]}  gxf5 {[%clk 0:01:24]} 26. Kf1 {[%clk 0:01:05]}  Rc6 {[%clk 0:01:22]} 27. Rb2 {[%clk 0:00:59]}  Rxc5 {[%clk 0:01:22]} 28. Rxb7 {[%clk 0:00:59]}  e6 {[%clk 0:01:21]} 29. Rb2 {[%clk 0:00:58]}  Re5 {[%clk 0:01:16]} 30. Rb3 {[%clk 0:00:55]}  Kg7 {[%clk 0:01:12]} 31. Ra3 {[%clk 0:00:51]}  a5 {[%clk 0:01:12]} 32. g3 {[%clk 0:00:49]}  Kf6 {[%clk 0:01:09]} 33. f4 {[%clk 0:00:42]}  Rb5 {[%clk 0:01:07]} 34. Ke2 {[%clk 0:00:41]}  h5 {[%clk 0:01:05]} 35. Kf3 {[%clk 0:00:41]}  Ke7 {[%clk 0:01:03]} 36. Rd3 {[%clk 0:00:33]}  a4 {[%clk 0:00:57]} 37. Rd4 {[%clk 0:00:27]}  Ra5 {[%clk 0:00:49]} 38. a3 {[%clk 0:00:27]}  Kf6 {[%clk 0:00:46]} 39. Rb4 {[%clk 0:00:26]}  Kg6 {[%clk 0:00:43]} 40. Ke3 {[%clk 0:00:20]}  Ra7 {[%clk 0:00:39]} 41. Kd4 {[%clk 0:00:19]}  h4 {[%clk 0:00:40]} 42. gxh4 {[%clk 0:00:19]}  Kh5 {[%clk 0:00:40]} 43. Ke5 {[%clk 0:00:18]}  Kxh4 {[%clk 0:00:39]} 44. Rb8 {[%clk 0:00:17]}  Kxh3 {[%clk 0:00:37]} 45. Rg8 {[%clk 0:00:17]}  Rd7 {[%clk 0:00:29]} 46. Kf6 {[%clk 0:00:12]}  Kh4 {[%clk 0:00:23]} 47. Ra8 {[%clk 0:00:11]}  Kg4 {[%clk 0:00:19]} 48. Rxa4 {[%clk 0:00:10]}  Rb7 {[%clk 0:00:18]} 49. Rc4 {[%clk 0:00:07]}  Ra7 {[%clk 0:00:18]} 50. a4 {[%clk 0:00:08]}  Rb7 {[%clk 0:00:19]} 51. Rd4 {[%clk 0:00:07]}  Ra7 {[%clk 0:00:19]} 52. Rc4 {[%clk 0:00:08]}  Kf3 {[%clk 0:00:18]} 53. Ke5 {[%clk 0:00:06]}  Ke3 {[%clk 0:00:16]} 54. Rc3+ {[%clk 0:00:07]}  Kd2 {[%clk 0:00:16]} 55. Ra3 {[%clk 0:00:07]}  Ra5+ {[%clk 0:00:14]} 56. Kf6 {[%clk 0:00:07]}  Ra7 {[%clk 0:00:14]} 57. a5 {[%clk 0:00:07]}  Kc2 {[%clk 0:00:15]} 58. a6 {[%clk 0:00:07]}  Kb2 {[%clk 0:00:15]} 59. Ra5 {[%clk 0:00:07]}  Kb3 {[%clk 0:00:15]} 60. Ra1 {[%clk 0:00:07]}  Kc4 {[%clk 0:00:14]} 61. Ke5 {[%clk 0:00:06]}  Kb5 {[%clk 0:00:14]} 62. Kf6 {[%clk 0:00:06]}  Kc5 {[%clk 0:00:09]} 63. Ke5 {[%clk 0:00:04]}  Kb5 {[%clk 0:00:09]} 64. Kf6 {[%clk 0:00:03]}  Kb4 {[%clk 0:00:09]} 65. Rb1+ {[%clk 0:00:03]}  Kc5 {[%clk 0:00:08]} 66. Ra1 {[%clk 0:00:03]}  Kd5 {[%clk 0:00:08]} 67. Ra4 {[%clk 0:00:02]}  Kd6 {[%clk 0:00:07]} 68. Rd4+ {[%clk 0:00:01]}  Kc6 {[%clk 0:00:07]} 69. Ra4 {[%clk 0:00:01]}  Kb5 {[%clk 0:00:08]} 70. Ra2 {[%clk 0:00:01]}  Kb4 {[%clk 0:00:08]} 71. Ra1 {[%clk 0:00:01]}  Kb3 {[%clk 0:00:08]} 72. Ra5 {[%clk 0:00:01]}  Kc3 {[%clk 0:00:08]} 73. Ra1 {[%clk 0:00:02]}  Kd3 {[%clk 0:00:09]} 74. Ra3+ {[%clk 0:00:02]}  Ke2 {[%clk 0:00:09]} 75. Ke5 {[%clk 0:00:01]}  Kf2 {[%clk 0:00:09]} 76. Kf6 {[%clk 0:00:02]}  Kg2 {[%clk 0:00:08]} 77. Ke5 {[%clk 0:00:02]}  Kf2 {[%clk 0:00:09]} 78. Kf6 {[%clk 0:00:03]}  Ke2 {[%clk 0:00:09]} 79. Ke5 {[%clk 0:00:04]}  Kd2 {[%clk 0:00:10]} 80. Kf6 {[%clk 0:00:04]}  Kc2 {[%clk 0:00:11]} 81. Ra5 {[%clk 0:00:04]}  Kc3 {[%clk 0:00:11]} 82. Kg7 {[%clk 0:00:05]}  Kb4 {[%clk 0:00:08]} 83. Ra1 {[%clk 0:00:05]}  Kc4 {[%clk 0:00:09]} 84. Kf6 {[%clk 0:00:05]}  Kd5 {[%clk 0:00:09]} 85. Ra5+ {[%clk 0:00:05]}  Kd6 {[%clk 0:00:10]} 86. Ra4 {[%clk 0:00:05]}  Kc6 {[%clk 0:00:10]} 87. Ra1 {[%clk 0:00:05]}  Kb6 {[%clk 0:00:10]} 88. Rb1+ {[%clk 0:00:05]}  Kc5 {[%clk 0:00:09]} 89. Ra1 {[%clk 0:00:06]}  Kc6 {[%clk 0:00:08]} 90. Ra2 {[%clk 0:00:06]}  Kd5 {[%clk 0:00:08]} 91. Ra5+ {[%clk 0:00:05]}  Ke4 {[%clk 0:00:08]} 92. Ra4+ {[%clk 0:00:06]}  Ke3 {[%clk 0:00:09]} 93. Ke5 {[%clk 0:00:05]}  Kf3 {[%clk 0:00:09]} 94. Kf6 {[%clk 0:00:05]}  Kg4 {[%clk 0:00:10]} 95. Ke5 {[%clk 0:00:05]}  Kh5 {[%clk 0:00:10]} 96. Kf6 {[%clk 0:00:05]}  Kh6 {[%clk 0:00:10]} 97. Ra1 {[%clk 0:00:05]}  Kh7 {[%clk 0:00:10]} 98. Ra2 {[%clk 0:00:03]}  Kg8 {[%clk 0:00:10]} 99. Ke5 {[%clk 0:00:03]}  Kg7 {[%clk 0:00:09]} 100. Kd6 {[%clk 0:00:03]}  Kf6 {[%clk 0:00:08]} 101. Kc6 {[%clk 0:00:03]}  e5 {[%clk 0:00:06]} 102. fxe5+ {[%clk 0:00:04]}  Kxe5 {[%clk 0:00:07]} 103. Kb6 {[%clk 0:00:04]}  Ra8 {[%clk 0:00:07]} 104. Kb7 {[%clk 0:00:05]}  Re8 {[%clk 0:00:07]} 105. a7 {[%clk 0:00:06]}  Kd4 {[%clk 0:00:03]} 106. Kc6 {[%clk 0:00:00]}  f4 {[%clk 0:00:01]} 0-1


[Site "https://www.chess.com"]

[Event "Titled Tuesday Blitz June 13 Early 2023"]
[White "KorolDimitriy75"]
[Black "Skliarov, Viktor"]
[BlackFideId "14106736"]
[WhiteElo "2421"]
[BlackElo "2317"]
[Result "0-1"]
[Round "4"]
[TimeControl "180+2"]
[Date "2023.06.13"]
[WhiteClock "0:00:00"]
[BlackClock "0:01:41"]
[Board "121"]

1. d4 {[%clk 0:02:54]}  Nf6 {[%clk 0:03:00]} 2. c4 {[%clk 0:02:53]}  e6 {[%clk 0:03:00]} 3. Nc3 {[%clk 0:02:54]}  Bb4 {[%clk 0:03:00]} 4. Qc2 {[%clk 0:02:54]}  c5 {[%clk 0:03:00]} 5. dxc5 {[%clk 0:02:54]}  Na6 {[%clk 0:03:00]} 6. Nf3 {[%clk 0:02:53]}  Nxc5 {[%clk 0:03:00]} 7. Bd2 {[%clk 0:02:54]}  O-O {[%clk 0:02:59]} 8. e3 {[%clk 0:02:53]}  b6 {[%clk 0:02:56]} 9. Be2 {[%clk 0:02:53]}  Bb7 {[%clk 0:02:56]} 10. O-O {[%clk 0:02:53]}  Rc8 {[%clk 0:02:56]} 11. Rfd1 {[%clk 0:02:46]}  Qe7 {[%clk 0:02:52]} 12. Rac1 {[%clk 0:02:38]}  Bxc3 {[%clk 0:02:42]} 13. Bxc3 {[%clk 0:02:39]}  d5 {[%clk 0:02:43]} 14. cxd5 {[%clk 0:01:59]}  Nxd5 {[%clk 0:02:40]} 15. Qb1 {[%clk 0:01:53]}  Nxc3 {[%clk 0:02:29]} 16. Rxc3 {[%clk 0:01:54]}  Ne4 {[%clk 0:02:27]} 17. Rxc8 {[%clk 0:01:48]}  Rxc8 {[%clk 0:02:28]} 18. Qd3 {[%clk 0:01:33]}  h6 {[%clk 0:02:22]} 19. h3 {[%clk 0:01:29]}  Bd5 {[%clk 0:02:17]} 20. a3 {[%clk 0:01:19]}  Qf6 {[%clk 0:02:17]} 21. Qa6 {[%clk 0:00:14]}  Rc2 {[%clk 0:02:04]} 22. Rf1 {[%clk 0:00:08]}  Qxb2 {[%clk 0:01:46]} 23. Bd3 {[%clk 0:00:06]}  Rxf2 {[%clk 0:01:46]} 24. Bxe4 {[%clk 0:00:03]}  Rxg2+ {[%clk 0:01:46]} 25. Kh1 {[%clk 0:00:00]}  Bxe4 {[%clk 0:01:41]} 0-1


[Site "https://www.chess.com"]